bitfinex/quotes_SOLUSD_20241013
["timestamp","ask_amount","ask_price","bid_price","bid_amount"]
[1728828906938,30.577284,147.05,147.02,0.8436888]
[1728828907348,16.3676,147.06,147.02,0.8436888]
[1728828907539,30.576384,147.07,147.03,6.8012]
[1728828907863,6.7986,147.09,147.05,6.8003]
[1728828908152,23.1657,147.1,147.06,6.7998]
[1728828909033,23.1657,147.1,147.05,6.8002]
[1728828909850,30.575484,147.09,147.05,6.8002]
[1728828910069,30.575484,147.09,147.04,17.0016]
[1728828910070,23.776884,147.09,147.04,17.0016]
[1728828910553,6.8004,147.05,147.02,0.8436888]
[1728828911550,40.773684,147.09,147.02,0.8436888]
[1728828911753,6.8009,147.04,147.02,0.8436888]
[1728828912860,6.3555,147.07,147.02,0.8436888]
[1728828913041,6.8013,147.03,147.02,0.8436888]
[1728828914052,6.8009,147.04,147.02,0.8436888]
[1728828914636,23.776884,147.06,147.02,0.8436888]
[1728828914954,6.801,147.04,147.02,0.8436888]
[1728828915460,6.8,147.06,147.02,7.6453888]
[1728828915634,13.1553,147.07,147.02,7.6453888]
[1728828915841,13.1553,147.07,147.03,6.8011]
[1728828915842,6.7998,147.07,147.03,6.8011]
[1728828920654,30.575484,147.09,147.04,6.8007]
[1728828920857,30.575484,147.09,147.02,17.8475888]
[1728828921062,30.575484,147.09,147.05,6.8003]
[1728828922666,6.798,147.11,147.07,6.7994]
[1728828922858,6.7972,147.12,147.07,6.7994]
[1728828924845,23.776884,147.13,147.07,6.7994]
[1728828925049,6.7976,147.11,147.07,6.7994]
[1728828925845,6.7981,147.1,147.06,23.7991]
[1728828926040,6.7981,147.1,147.06,16.9993]
[1728828926455,6.7987,147.09,147.03,17.0026]
[1728828926666,6.7987,147.09,147.04,6.8008]
[1728828926856,23.776884,147.13,147.03,17.0026]
[1728828927060,6.7995,147.07,147.03,23.8037]
[1728828932267,16.2081,147.09,147.02,0.8436888]
[1728828932581,6.8004,147.05,147.02,0.8436888]
[1728828932873,6.8,147.06,147.02,7.6453888]
[1728828933572,6.7995,147.07,147.02,7.6453888]
[1728828935476,6.7995,147.07,147.02,0.8436888]
[1728828935679,6.7995,147.07,147.03,6.8012]
[1728828936161,30.575984,147.08,147.03,6.8012]
[1728828937373,6.7994,147.07,147.03,6.8012]
[1728828942283,6.8007,147.05,147.02,0.8436888]
[1728828942880,6.7999,147.06,147.02,0.8436888]
[1728828943082,6.7996,147.07,147.02,0.8436888]
[1728828943583,22.7504,147.09,147.02,0.8436888]
[1728828944277,6.7998,147.07,147.03,17.0029]
[1728828945887,6.7998,147.07,147.03,23.804]
[1728828947075,6.8,147.06,147.03,17.0029]
[1728828947977,6.8,147.06,147.02,7.6452888]
[1728828948764,6.8004,147.05,147.02,0.8436888]
[1728828950579,6.8,147.06,147.02,0.8436888]
[1728828951468,6.8,147.06,147.02,7.6452888]
[1728828951656,6.7995,147.07,147.03,6.8013]
[1728828951863,6.7991,147.08,147.04,6.8005]
[1728828952678,16.2081,147.09,147.02,12.0452497]
[1728828952882,6.7981,147.1,147.06,6.7998]
[1728828954272,6.7979,147.11,147.06,6.7998]
[1728828956487,23.776884,147.12,147.06,6.7998]
[1728828956696,6.7982,147.1,147.04,17.0011]
[1728828956990,6.7982,147.1,147.05,6.8002]
[1728828957690,40.770184,147.12,147.04,23.8019]
[1728828958285,6.7998,147.07,147.02,7.6452888]
[1728828958487,40.770184,147.12,147.02,12.0452497]
[1728828959487,6.7986,147.09,147.04,6.8005]
[1728828966500,21.8272,147.13,147.05,18.3602441]
[1728828966890,21.8272,147.13,147.05,17.0002]
[1728828967495,6.7977,147.11,147.07,6.7993]
[1728828971403,28.124,147.13,147.08,6.7985]
[1728828971705,22.0817,147.13,147.09,6.7984]
[1728828972484,6.7963,147.14,147.07,11.2015609]
[1728828972684,6.7963,147.14,147.1,6.798]
[1728828972885,6.7961,147.15,147.11,6.7975]
[1728828973094,16.5407,147.16,147.12,6.797]
[1728828974303,7.63166457,147.19,147.11,16.9936]
[1728828974605,6.7957,147.15,147.11,23.791]
[1728828974810,6.7957,147.15,147.11,16.9936]
[1728828975098,6.7957,147.15,147.11,23.7912]
[1728828975301,6.7954,147.16,147.12,6.797]
[1728828978610,23.776884,147.16,147.12,6.797]
[1728828980417,30.572184,147.16,147.12,6.797]
[1728828980717,6.356,147.2,147.11,11.2015609]
[1728828980890,23.776884,147.19,147.13,6.7962]
[1728828981085,6.7949,147.17,147.13,23.7873]
[1728828981286,6.7954,147.16,147.13,16.9911]
[1728828981486,6.7954,147.16,147.11,6.7972]
[1728828981685,6.7954,147.16,147.1,20.0]
[1728828981989,6.7954,147.16,147.12,6.7971]
[1728828982183,23.776884,147.19,147.12,6.7971]
[1728828982402,6.7949,147.17,147.12,6.7971]
[1728828984413,6.7949,147.17,147.13,6.7966]
[1728828985514,6.7949,147.17,147.12,6.797]
[1728828990023,23.776884,147.16,147.13,6.7966]
[1728828990311,30.572284,147.16,147.11,6.7972]
[1728828991887,6.7967,147.13,147.09,6.7981]
[1728828993990,30.572284,147.16,147.12,6.7967]
[1728828994490,21.8862,147.17,147.13,6.7966]
[1728828999101,15.091,147.17,147.12,20.0]
[1728828999320,23.776884,147.16,147.07,6.2034]
[1728828999502,6.7958,147.15,147.11,6.7975]
[1728829000217,6.7963,147.14,147.1,23.7922]
[1728829002520,23.776884,147.16,147.06,14.7122]
[1728829002713,6.7973,147.12,147.08,6.7988]
[1728829003021,23.776884,147.12,147.08,6.7988]
[1728829004105,30.574184,147.12,147.08,6.7988]
[1728829004809,6.7982,147.1,147.06,6.7999]
[1728829005713,6.7977,147.11,147.06,6.7999]
[1728829007128,6.7982,147.1,147.06,6.7999]
[1728829009130,6.7976,147.11,147.06,6.7999]
[1728829009428,23.776884,147.1,147.07,6.7993]
[1728829010633,23.776884,147.11,147.08,6.7989]
[1728829013817,15.8789,147.12,147.09,6.7985]
[1728829014138,15.8789,147.12,147.06,16.9994]
[1728829014317,15.8789,147.12,147.08,6.7989]
[1728829019736,15.8789,147.12,147.09,6.7984]
[1728829020928,15.8789,147.12,147.02,15.5558888]
[1728829020929,6.3202,147.15,147.1,16.9947]
[1728829021243,22.9117,147.16,147.11,6.7971]
[1728829023940,16.1161,147.16,147.13,6.7966]
[1728829024937,30.571384,147.18,147.1,12.56089127]
[1728829025439,30.571384,147.18,147.07,14.7122]
[1728829025440,13.2709,147.19,147.14,6.7962]
[1728829025735,13.2709,147.19,147.08,20.0]
[1728829025736,6.4766,147.19,147.13,6.7966]
[1728829026329,6.7945,147.18,147.14,6.7961]
[1728829026551,23.776884,147.17,147.14,6.7961]
[1728829027738,13.2709,147.19,147.14,6.7961]
[1728829028526,6.4766,147.19,147.15,6.7956]
[1728829028847,13.2706,147.19,147.14,6.7961]
[1728829033534,21.9334,147.2,147.15,6.7954]
[1728829035451,30.570784,147.19,147.15,6.7954]
[1728829036038,30.570784,147.19,147.13,16.9913]
[1728829036236,30.570784,147.19,147.14,6.7961]
[1728829036544,23.776884,147.19,147.13,16.9913]
[1728829037260,23.776884,147.19,147.08,31.2015609]
[1728829037261,6.2934,147.18,147.08,20.0]
[1728829037547,6.7965,147.14,147.1,16.9945]
[1728829037940,23.776884,147.17,147.1,16.9945]
[1728829037941,6.7958,147.15,147.1,23.7922]
[1728829041334,6.7958,147.15,147.1,16.9945]
[1728829041634,6.7958,147.15,147.11,6.7976]
[1728829043560,23.776884,147.15,147.12,6.7971]
[1728829049264,6.2934,147.18,147.08,11.2015609]
[1728829049459,6.7949,147.17,147.13,6.7966]
[1728829053463,13.0879,147.18,147.13,6.7966]
[1728829058371,16.9818,147.22,147.13,1.35922268]
[1728829058372,23.0719,147.22,147.13,1.35922268]
[1728829058656,21.9334,147.2,147.15,6.7954]
[1728829059465,6.7931,147.21,147.16,6.7952]
[1728829059650,6.0901,147.22,147.18,6.7941]
[1728829059855,6.0901,147.22,147.14,11.2015609]
[1728829060167,6.793,147.21,147.17,6.7948]
[1728829061660,23.776884,147.19,147.16,16.9878]
[1728829063741,6.7935,147.2,147.16,16.9878]
[1728829064050,6.7935,147.2,147.16,23.7829]
[1728829065167,23.776884,147.21,147.16,16.9878]
[1728829065347,30.569884,147.21,147.17,6.7948]
[1728829068944,6.7944,147.18,147.14,6.7962]
[1728829069164,6.7944,147.18,147.13,16.991]
[1728829069165,23.776884,147.21,147.13,16.991]
[1728829069356,6.7948,147.17,147.13,23.7875]
[1728829072448,6.7953,147.16,147.13,16.991]
[1728829074248,23.776884,147.19,147.13,16.991]
[1728829074455,6.795,147.17,147.13,16.991]
[1728829075452,6.7945,147.18,147.13,23.7876]
[1728829075647,6.7945,147.18,147.14,6.7961]
[1728829076550,30.570884,147.19,147.14,6.7961]
[1728829076753,30.570884,147.19,147.15,6.7957]
[1728829079071,30.570884,147.19,147.14,6.7961]
[1728829079447,30.570884,147.19,147.13,16.991]
[1728829079652,30.570884,147.19,147.15,6.7956]
[1728829079976,30.570884,147.19,147.14,6.7961]
[1728829080471,23.776884,147.19,147.14,6.7961]
[1728829080774,6.7944,147.18,147.14,6.7961]
[1728829088568,6.7944,147.18,147.13,23.7875]
[1728829088771,6.7962,147.14,147.1,23.7923]
[1728829088967,6.7962,147.14,147.1,16.9947]
[1728829089481,6.7962,147.14,147.1,23.7926]
[1728829090580,30.573584,147.13,147.04,32.3631609]
[1728829090763,30.573584,147.13,147.08,6.7989]
[1728829091860,23.776884,147.14,147.05,20.0]
[1728829092674,23.776884,147.12,147.08,6.799]
[1728829094579,6.7968,147.13,147.07,1.35969573]
[1728829094787,23.776884,147.14,147.09,6.7981]
[1728829095083,6.7967,147.13,147.08,16.997]
[1728829095258,6.7967,147.13,147.08,23.7958]
[1728829095259,23.776884,147.12,147.08,23.7958]
[1728829095584,30.574084,147.12,147.08,16.997]
[1728829096173,23.776884,147.12,147.06,6.7998]
[1728829096389,6.7986,147.09,147.04,6.8005]
[1728829096684,6.7981,147.1,147.05,6.8002]
[1728829096983,6.7985,147.09,147.05,23.8004]
[1728829097763,6.7985,147.09,147.05,17.0002]
[1728829097982,6.7991,147.08,147.04,6.8007]
[1728829099083,30.575484,147.09,147.04,6.8007]
[1728829100163,15.7752,147.1,147.02,0.8436888]
[1728829100384,15.7752,147.1,147.06,6.7995]
[1728829100767,6.7986,147.09,147.04,6.8004]
[1728829100968,6.7986,147.09,147.05,6.8003]
[1728829101382,6.7986,147.09,147.04,17.0012]
[1728829101688,22.5733,147.1,147.06,6.7998]
[1728829105097,15.7752,147.1,147.06,6.7998]
[1728829107203,22.5733,147.1,147.06,6.7998]
[1728829110000,15.7752,147.1,147.04,17.0012]
[1728829110300,15.7752,147.1,147.05,6.8002]
[1728829110301,6.7986,147.09,147.05,6.8002]
[1728829110481,6.7991,147.08,147.04,23.8019]
[1728829113484,30.575484,147.09,147.04,23.8019]
[1728829113699,30.575484,147.09,147.05,6.8003]
[1728829118010,6.799,147.08,147.04,23.802]
[1728829118506,30.575584,147.09,147.04,23.802]
[1728829122596,23.776884,147.09,147.05,6.8003]
[1728829122804,22.5733,147.1,147.06,6.7998]
[1728829126914,15.7752,147.1,147.07,6.7993]
[1728829127792,6.7972,147.12,147.08,6.7987]
[1728829128121,23.776884,147.11,147.07,6.7993]
[1728829128296,6.7981,147.1,147.06,23.7994]
[1728829131020,23.776884,147.12,147.06,16.9996]
[1728829131215,23.776884,147.1,147.06,16.9996]
[1728829131514,23.776884,147.1,147.06,23.7994]
[1728829136001,30.574984,147.1,147.06,23.7994]
[1728829139321,6.7977,147.11,147.07,6.7994]
[1728829139503,23.776884,147.12,147.06,16.9996]
[1728829139701,30.574384,147.12,147.07,6.7993]
[1728829140327,6.7978,147.11,147.07,6.7993]
[1728829141308,6.7985,147.1,147.06,16.9996]
[1728829141509,6.7985,147.1,147.06,23.7993]
[1728829141716,6.7977,147.11,147.07,6.7994]
[1728829141906,22.419,147.13,147.07,1.35978183]
[1728829142228,22.419,147.13,147.06,16.9996]
[1728829142427,6.7973,147.12,147.07,6.799]
[1728829142927,6.7979,147.11,147.06,16.9996]
[1728829143135,6.7979,147.11,147.06,23.7994]
[1728829143424,6.7981,147.1,147.06,23.7994]
[1728829145035,23.776884,147.12,147.03,17.0026]
[1728829145332,6.7986,147.09,147.04,8.16051527]
[1728829145712,6.7986,147.09,147.04,6.8005]
[1728829146338,6.7986,147.09,147.04,8.16051502]
[1728829147324,6.7986,147.09,147.05,6.8002]
[1728829149642,6.7982,147.1,147.06,6.7998]
[1728829152932,39.4113,147.13,147.05,17.0007]
[1728829152933,6.798,147.11,147.07,6.7994]
[1728829153109,22.419,147.13,147.05,17.0007]
[1728829154127,6.7973,147.12,147.07,6.799]
[1728829154643,7.07421081,147.16,147.08,1.35972462]
[1728829154945,38.3569,147.17,147.07,20.0]
[1728829155151,38.3569,147.17,147.08,1.35952557]
[1728829155514,6.7962,147.14,147.1,6.798]
[1728829156633,6.7958,147.15,147.11,6.7975]
[1728829158016,6.7954,147.16,147.12,6.7971]
[1728829158229,6.7962,147.14,147.07,20.0]
[1728829158438,6.7968,147.13,147.09,6.7984]
[1728829161244,23.776884,147.16,147.09,6.7984]
[1728829161431,6.7963,147.14,147.09,6.7984]
[1728829165442,23.776884,147.16,147.08,23.7957]
[1728829165443,6.7971,147.12,147.08,23.7957]
[1728829165828,6.7971,147.12,147.08,16.9969]
[1728829167131,6.7971,147.12,147.08,23.7956]
[1728829176135,15.3564,147.12,147.05,17.0003]
[1728829176340,6.7981,147.1,147.06,6.7998]
[1728829176753,6.7981,147.1,147.05,23.8005]
[1728829177343,15.3564,147.12,147.01,21.2261]
[1728829177344,23.776884,147.09,147.01,21.2261]
[1728829177658,6.8005,147.05,147.01,6.8019]
[1728829180429,15.3564,147.07,146.99,23.8101]
[1728829180430,23.776884,147.06,146.99,23.8101]
[1728829181446,6.8013,147.03,146.99,23.8101]
[1728829184845,6.8009,147.04,146.99,23.8101]
[1728829186269,6.8009,147.04,146.99,17.0073]
[1728829186453,6.8009,147.04,147.0,6.8024]
[1728829187366,6.8009,147.04,146.99,23.8104]
[1728829193749,6.8013,147.03,146.99,23.8104]
[1728829198778,15.3564,147.07,146.99,17.0073]
[1728829198962,6.801,147.04,147.0,6.8026]
[1728829202271,6.801,147.04,146.99,23.8103]
[1728829203173,15.3564,147.07,146.99,23.8103]
[1728829203348,6.8013,147.03,146.99,23.8103]
[1728829204555,23.776884,147.06,147.0,8.1629292]
[1728829204877,6.8005,147.05,147.0,8.1629292]
[1728829205060,15.3564,147.07,147.02,2.20399469]
[1728829205253,6.8,147.06,147.02,2.20399469]
[1728829206274,6.8004,147.05,147.02,0.8436888]
[1728829208871,6.8004,147.05,147.02,2.20393402]
[1728829209671,6.7991,147.08,147.03,6.8008]
[1728829209869,23.776884,147.09,147.03,6.8008]
[1728829210054,6.7996,147.07,147.03,6.8008]
[1728829210263,6.2245,147.1,147.04,1.36004663]
[1728829210478,6.7991,147.08,147.04,8.16084663]
[1728829211773,15.8691,147.11,147.04,1.36004663]
[1728829212272,6.7981,147.1,147.06,6.7998]
[1728829212574,6.7981,147.1,147.07,1.35973405]
[1728829212771,6.7981,147.1,147.06,6.7998]
[1728829212964,15.8691,147.14,147.08,6.7988]
[1728829214474,22.6657,147.14,147.09,6.7985]
[1728829215075,6.7977,147.11,147.07,23.7976]
[1728829223274,6.7984,147.1,147.05,6.8002]
[1728829224160,6.7986,147.09,147.05,6.8002]
[1728829224366,6.7986,147.09,147.04,23.8022]
[1728829224665,6.4672,147.11,147.05,20.0]
[1728829224986,6.799,147.08,147.05,20.0]
[1728829226280,6.7987,147.09,147.05,20.0]
[1728829226486,6.7987,147.09,147.05,21.35988762]
[1728829226871,6.7987,147.09,147.05,28.16018762]
[1728829227671,6.4672,147.11,147.06,6.7999]
[1728829227672,6.7981,147.1,147.06,6.7999]
[1728829229980,6.4672,147.11,147.05,20.0]
[1728829230163,6.7986,147.09,147.05,20.0]
[1728829230357,6.7986,147.09,147.05,28.16021231]
[1728829230558,6.7986,147.09,147.05,26.8003]
[1728829232486,6.7986,147.09,147.05,20.0]
[1728829232676,6.8004,147.05,147.02,0.8436888]
[1728829232862,6.8009,147.04,147.02,0.8436888]
[1728829234662,6.8013,147.03,147.02,0.8436888]
[1728829239489,6.8009,147.04,147.02,0.8436888]
[1728829239991,6.8013,147.03,147.02,0.8436888]
[1728829242998,16.0078,147.09,147.02,0.8436888]
[1728829243289,16.0078,147.09,147.02,7.6452888]
[1728829243500,16.0078,147.09,147.02,9.00549977]
[1728829243797,6.8,147.06,147.02,7.6452888]
[1728829244369,6.8,147.06,147.02,0.8436888]
[1728829247390,6.8,147.06,147.02,9.00533953]
[1728829247578,16.0078,147.09,147.02,9.00533953]
[1728829247579,16.0078,147.09,147.02,2.20393953]
[1728829247786,6.799,147.08,147.04,6.8008]
[1728829248080,16.0078,147.09,147.05,8.1603049]
[1728829248286,16.0078,147.09,147.05,6.8003]
[1728829248481,6.7985,147.1,147.06,6.7998]
[1728829251284,6.7986,147.09,147.05,6.8003]
[1728829251697,6.799,147.08,147.04,23.8021]
[1728829252699,6.7986,147.09,147.04,23.8021]
[1728829262215,6.4672,147.11,147.06,6.7996]
[1728829263190,6.7977,147.11,147.07,6.7993]
[1728829263389,6.7977,147.11,147.04,11.2015609]
[1728829263590,6.7983,147.1,147.06,23.7993]
[1728829267106,23.776884,147.12,147.07,1.3597964]
[1728829267297,15.7357,147.13,147.07,1.3597224]
[1728829267492,15.7357,147.13,147.08,16.9972]
[1728829268393,6.7976,147.11,147.08,16.9972]
[1728829269310,6.7972,147.12,147.08,25.15584435]
[1728829269529,6.7972,147.12,147.08,23.7962]
[1728829270295,6.7976,147.11,147.08,16.9972]
[1728829271814,7.06822166,147.15,147.08,16.9972]
[1728829272001,6.7956,147.16,147.11,6.7973]
[1728829272319,15.3515,147.18,147.11,6.7973]
[1728829272320,6.795,147.17,147.12,6.7971]
[1728829272520,6.795,147.17,147.13,1.35920648]
[1728829272697,6.795,147.17,147.13,1.35920395]
[1728829272893,6.795,147.17,147.13,6.7965]
[1728829274409,6.7944,147.18,147.14,1.35907869]
[1728829274716,6.7944,147.18,147.14,8.15527869]
[1728829276193,15.6339,147.22,147.15,20.0]
[1728829276399,22.4265,147.22,147.17,6.7948]
[1728829277013,15.6339,147.22,147.15,31.2015609]
[1728829277220,6.7931,147.21,147.17,6.7948]
[1728829277718,22.4265,147.22,147.17,6.7948]
[1728829278300,22.4265,147.22,147.18,1.35866486]
[1728829279221,22.4265,147.22,147.17,6.7948]
[1728829280202,22.4265,147.22,147.18,1.35866588]
[1728829280805,22.4265,147.22,147.17,6.7948]
[1728829281314,22.4265,147.22,147.18,1.35866635]
[1728829281911,6.5206,147.23,147.18,1.35866635]
[1728829281912,6.7921,147.23,147.18,8.15286635]
[1728829282401,15.6339,147.25,147.19,1.35859297]
[1728829282631,22.4251,147.25,147.2,6.7933]
[1728829283427,22.4251,147.25,147.2,23.7769]
[1728829284932,6.7916,147.24,147.2,23.7769]
[1728829285834,15.6339,147.25,147.22,6.7924]
[1728829286129,15.6339,147.25,147.21,1.35844672]
[1728829286317,6.7925,147.23,147.18,6.794]
[1728829289832,6.7916,147.24,147.19,6.7937]
[1728829290011,6.7916,147.24,147.19,8.15222299]
[1728829290640,6.7916,147.24,147.19,1.35852299]
[1728829290820,6.7912,147.25,147.2,6.793]
[1728829291014,6.7912,147.25,147.21,1.35832868]
[1728829291233,6.7912,147.25,147.21,8.15112868]
[1728829293424,6.7908,147.26,147.21,8.15112868]
[1728829293935,32.609,147.28,147.22,6.7923]
[1728829293936,6.7903,147.27,147.22,6.7923]
[1728829294124,6.7903,147.27,147.23,1.3581949]
[1728829294320,15.6339,147.28,147.22,6.7923]
[1728829294645,6.7907,147.26,147.22,6.7923]
[1728829294839,15.6339,147.28,147.21,11.2015609]
[1728829295142,6.7902,147.27,147.22,8.15027223]
[1728829295344,6.7902,147.27,147.24,16.979]
[1728829295640,6.7902,147.27,147.22,8.15027223]
[1728829297741,6.7908,147.26,147.22,8.15027223]
[1728829297944,6.7908,147.26,147.22,6.7921]
[1728829298152,6.7908,147.26,147.23,1.35817547]
[1728829299423,6.7902,147.27,147.23,8.15007547]
[1728829300249,6.7902,147.27,147.23,6.7919]
[1728829300419,6.7902,147.27,147.24,1.35813005]
[1728829300715,6.7902,147.27,147.23,6.7919]
[1728829302129,6.7902,147.27,147.24,1.35813026]
[1728829302644,6.7902,147.27,147.23,6.7919]
[1728829303366,6.7902,147.27,147.21,16.9819]
[1728829303367,6.7902,147.27,147.22,26.7924]
[1728829303847,15.6339,147.28,147.18,16.9852]
[1728829304140,6.7916,147.24,147.19,6.7935]
[1728829304529,6.7916,147.24,147.18,16.9852]
[1728829304724,6.7916,147.24,147.2,6.7932]
[1728829309948,6.7916,147.24,147.19,26.7938]
[1728829313453,6.7916,147.24,147.19,20.0]
[1728829313753,6.7916,147.24,147.2,6.7933]
[1728829313949,32.6087,147.28,147.2,6.7933]
[1728829314128,6.7913,147.25,147.21,8.15138524]
[1728829314335,6.7913,147.25,147.21,6.793]
[1728829314829,6.7908,147.26,147.22,8.15088561]
[1728829315535,6.7908,147.26,147.22,6.7925]
[1728829315751,6.7912,147.25,147.21,6.7929]
[1728829318937,22.4237,147.28,147.24,6.7915]
[1728829319137,6.7907,147.26,147.22,6.7924]
[1728829319727,6.7907,147.26,147.23,1.35826762]
[1728829320155,6.7907,147.26,147.22,16.9806]
[1728829320458,15.6339,147.28,147.2,6.7933]
[1728829320660,15.6339,147.28,147.22,6.7925]
[1728829320854,6.791,147.26,147.22,6.7925]
[1728829321540,6.791,147.26,147.23,1.35819362]
[1728829321846,6.791,147.26,147.22,6.7925]
[1728829324334,6.791,147.26,147.21,16.9822]
[1728829324536,15.6339,147.28,147.21,16.9822]
[1728829324737,6.7916,147.24,147.21,16.9822]
[1728829324939,6.7916,147.24,147.2,6.7934]
[1728829325847,6.7924,147.23,147.18,16.9853]
[1728829326074,6.7924,147.23,147.19,6.7939]
[1728829326652,6.7917,147.24,147.19,6.7939]
[1728829329267,6.7917,147.24,147.2,1.35847336]
[1728829329485,6.7917,147.24,147.2,8.15187336]
[1728829329975,6.7917,147.24,147.2,6.7934]
[1728829332649,6.7917,147.24,147.2,8.15187297]
[1728829333248,6.7917,147.24,147.2,6.7934]
[1728829336279,6.7917,147.24,147.2,8.15187087]
[1728829336669,6.7917,147.24,147.2,6.7934]
[1728829337678,6.7912,147.25,147.21,1.3584723]
[1728829338067,15.6339,147.28,147.21,8.1514723]
[1728829338375,6.7907,147.26,147.22,6.7924]
[1728829338582,6.7903,147.27,147.23,8.15027348]
[1728829342286,22.4237,147.28,147.24,6.7915]
[1728829342455,22.4237,147.28,147.25,1.35806918]
[1728829344581,22.4237,147.28,147.24,6.7915]
[1728829344887,6.7898,147.28,147.24,6.7915]
[1728829345183,6.5206,147.3,147.24,6.7915]
[1728829345358,6.7894,147.29,147.24,6.7915]
[1728829345955,6.7901,147.28,147.24,6.7915]
[1728829347891,16.4354,147.32,147.24,6.7915]
[1728829348063,16.4354,147.32,147.25,6.7911]
[1728829348458,6.7892,147.3,147.25,6.7911]
[1728829349589,16.4354,147.32,147.24,16.9785]
[1728829349880,6.7894,147.29,147.24,23.7697]
[1728829354195,6.7898,147.28,147.24,23.7697]
[1728829354887,6.7898,147.28,147.24,16.9785]
[1728829356986,6.7898,147.28,147.24,18.33657436]
[1728829357201,6.7898,147.28,147.24,16.9785]
[1728829357362,6.7898,147.28,147.25,1.35807327]
[1728829357562,6.7894,147.29,147.25,1.35805279]
[1728829358297,6.7894,147.29,147.25,8.14915279]
[1728829359516,6.7894,147.29,147.25,6.7911]
[1728829361297,6.7894,147.29,147.26,1.35801067]
[1728829362592,6.7875,147.33,147.28,6.7894]
[1728829363975,22.0189,147.35,147.27,20.0]
[1728829364181,6.7875,147.33,147.29,6.789]
[1728829364798,28.8055,147.35,147.3,6.7885]
[1728829364992,28.8055,147.35,147.28,11.2015609]
[1728829364993,15.6976,147.35,147.28,11.2015609]
[1728829365199,22.4845,147.35,147.3,6.7888]
[1728829365895,6.7871,147.34,147.3,6.7888]
[1728829366069,6.788,147.32,147.28,6.7896]
[1728829366274,6.7875,147.33,147.27,20.0]
[1728829366573,6.7875,147.33,147.29,6.7892]
[1728829369198,6.787,147.34,147.28,11.2015609]
[1728829369381,6.787,147.34,147.3,6.7888]
[1728829370296,6.7875,147.33,147.28,6.7893]
[1728829370699,6.7875,147.33,147.29,6.7892]
[1728829377207,6.7871,147.34,147.29,6.7892]
[1728829379412,6.7871,147.34,147.3,8.14632039]
[1728829379582,6.7871,147.34,147.3,6.7887]
[1728829380105,15.6976,147.35,147.3,6.7887]
[1728829380617,6.787,147.34,147.3,6.7887]
[1728829385895,15.6976,147.35,147.27,20.0]
[1728829386097,6.7885,147.31,147.27,6.79]
[1728829387518,6.7879,147.32,147.28,8.14751095]
[1728829387932,6.7877,147.33,147.29,6.7892]
[1728829392396,6.787,147.34,147.3,6.7887]
[1728829392622,6.7871,147.34,147.3,6.7887]
[1728829393618,22.4843,147.35,147.3,6.7887]
[1728829394821,6.7872,147.34,147.3,6.7887]
[1728829399534,6.7879,147.32,147.28,6.7897]
[1728829400725,15.6976,147.35,147.23,11.2015609]
[1728829400726,23.776884,147.33,147.23,11.2015609]
[1728829400925,6.7889,147.3,147.25,6.7908]
[1728829401128,6.7889,147.3,147.26,8.14856897]
[1728829403403,6.7889,147.3,147.26,1.35796897]
[1728829403605,6.7889,147.3,147.25,8.14896998]
[1728829405226,6.7889,147.3,147.25,19.35053088]
[1728829405422,6.7889,147.3,147.26,1.35797087]
[1728829405628,6.7894,147.29,147.25,6.791]
[1728829406532,6.7898,147.28,147.22,20.0]
[1728829406833,6.7898,147.28,147.23,17.9934609]
[1728829408410,6.7898,147.28,147.23,6.7919]
[1728829410734,6.7898,147.28,147.24,6.7916]
[1728829412128,6.7894,147.29,147.24,6.7916]